[Event "World Chess Trophy 2018"]
[Site "Tenerife"]
[Date "2018.06.21"]
[Round "5"]
[White "Kovacs, Zoltan"]
[Black "Efremov, Vladislav"]
[Result "1-0"]
[ECO "A05"]
[WhiteElo "2146"]
[BlackElo "1968"]
[Annotator "NA"]
[PlyCount "145"]
[EventDate "2018.06.17"]
[EventType "swiss"]
[EventCountry "ESP"]
[SourceTitle "playchess.com"]
[Source "ChessBase"]
[SourceQuality "1"]
[TimeControl "5400+30"]

1. Nf3 {[%emt 0:00:00]} Nf6 {[%emt 0:00:15]} 2. g3 {[%emt 0:00:00]} b5 {[%emt 0:00:07]} 3. Bg2 {[%emt 0:01:50]} Bb7 {[%emt 0:00:04]} 4. O-O {[%emt 0:00:06]} e6 {[%emt 0:00:19]} 5. b3 {[%emt 0:00:38] LiveBook: 177 Games} Be7 {[%emt 0:00:34]} 6. c4 {[%emt 0:01:08]} bxc4 {[%emt 0:06:32]} 7. bxc4 {[%emt 0:00:05]} c5 {[%emt 0:01:01] A05: Übergänge in verschiedene Eröffnungen} 8. Nc3 {[%emt 0:03:58]} Nc6 {[%emt 0:02:55]} 9. Rb1 {[%emt 0:00:48]} Rb8 {[%emt 0:04:51]} 10. d3 {[%emt 0:02:01]} Ba8 {[%emt 0:10:45]} (10... O-O 11. Bf4 d6 12. Nd2 Qd7 13. Nde4 Nxe4 14. Bxe4 Nd4 15. Bxb7 Rxb7 16. Rxb7 Qxb7 {½-½ (41) Marin,M (2539)-Vallejo Pons,F (2711) Tallinn 2016}) 11. Rxb8 {[%emt 0:04:59]} Qxb8 {[%emt 0:01:48]} 12. Bf4 {[%emt 0:01:10]} d6 {[%emt 0:05:06]} 13. Qa4 {[%emt 0:00:49]} O-O {[%emt 0:01:47]} 14. Rb1 {[%emt 0:00:06] [#]} Qd8 $146 {[%emt 0:03:58]} ({Vorgänger:} 14... Qc7 15. Nd2 {½-½ (38) Oll,L (2560)-Krasenkow,M (2570) Oviedo 1991}) 15. Nd2 {[%emt 0:10:56]} Qd7 {[%emt 0:03:13]} 16. Nb3 {[%emt 0:06:20]} Rb8 {[%emt 0:10:20]} 17. Na5 {[%emt 0:01:56]} Rxb1+ {[%emt 0:00:26]} 18. Nxb1 {[%emt 0:00:04]} d5 {[%emt 0:03:55]} 19. Nxc6 {[%emt 0:03:59]} Bxc6 {[%emt 0:00:30]} 20. Qa6 {[%emt 0:00:05]} Qb7 {[%emt 0:06:52]} 21. Qxb7 {[%emt 0:00:24]} Bxb7 {[%emt 0:00:02]} 22. Nc3 {[%emt 0:05:32]} Kf8 {[%emt 0:09:32]} 23. Bg5 {[%emt 0:05:20]} Ke8 {[%emt 0:04:11]} 24. Bxf6 {[%emt 0:03:43]} Bxf6 {[%emt 0:00:08]} 25. Nb5 {[%emt 0:00:08]} Kd7 {[%emt 0:00:16]} 26. Nxa7 {[%emt 0:00:47]} Bc6 {[%emt 0:00:12]} 27. cxd5 {[%emt 0:09:54]} exd5 {[%emt 0:00:11]} 28. Nxc6 {[%emt 0:00:12]} Kxc6 {[%emt 0:00:04]} 29. e4 {[%emt 0:00:18]} dxe4 {[%emt 0:00:10]} 30. Bxe4+ {[%emt 0:00:09]} Kd6 {[%emt 0:00:08]} 31. h4 {[%emt 0:05:09]} h6 {[%emt 0:00:18]} 32. h5 {[%emt 0:00:34]} Ke5 {[%emt 0:02:43]} 33. Bc6 {[%emt 0:01:12]} Kd4 {[%emt 0:00:44]} 34. Bb5 {[%emt 0:00:06]} g6 {[%emt 0:02:17]} 35. hxg6 {[%emt 0:04:12]} fxg6 {[%emt 0:00:05]} 36. Kg2 {[%emt 0:05:17]} Bd8 {[%emt 0:03:43]} 37. Kh3 {[%emt 0:00:43]} Ke5 {[%emt 0:05:47]} 38. Be8 {[%emt 0:01:04]} Kf5 {[%emt 0:02:34]} 39. Bd7+ {[%emt 0:02:50]} Ke5 {[%emt 0:01:53]} 40. Be8 {[%emt 0:03:00]} Kf5 {[%emt 0:00:12]} 41. Bd7+ {[%emt 0:00:03]} Ke5 {[%emt 0:00:17]} 42. a4 {[%emt 0:00:06]} Kd4 {[%emt 0:03:35]} 43. Bb5 {[%emt 0:00:40]} Ke5 {[%emt 0:00:25]} 44. Kg4 {[%emt 0:00:25]} Kd4 {[%emt 0:01:34]} 45. Bc4 {[%emt 0:00:44]} h5+ {[%emt 0:00:32]} 46. Kf4 {[%emt 0:00:52]} g5+ {[%emt 0:00:13]} 47. Kf5 {[%emt 0:07:54]} h4 {[%emt 0:00:14]} 48. Kg4 {[%emt 0:00:04]} hxg3 {[%emt 0:00:08]} 49. fxg3 {[%emt 0:01:45]} Ke5 {[%emt 0:00:37]} 50. Kh5 {[%emt 0:03:28]} Kd6 {[%emt 0:00:30]} 51. Kg6 {[%emt 0:01:16]} Kc6 {[%emt 0:00:18]} 52. a5 {[%emt 0:02:04]} Kb7 {[%emt 0:00:24]} 53. a6+ {[%emt 0:00:23]} Ka7 {[%emt 0:00:04]} 54. g4 {[%emt 0:00:04]} Be7 {[%emt 0:00:53]} 55. Bb5 {[%emt 0:00:11]} Bd8 {[%emt 0:00:44]} 56. Bc4 {[%emt 0:00:04]} Be7 {[%emt 0:00:08]} 57. Kf5 {[%emt 0:00:06]} Bd8 {[%emt 0:00:12]} 58. Bb5 {[%emt 0:00:42]} Kb8 {[%emt 0:00:30]} 59. Ke5 {[%emt 0:00:31]} Ba5 {[%emt 0:00:23]} 60. Kd6 {[%emt 0:00:21]} Bb4 {[%emt 0:00:09]} 61. Kc6 {[%emt 0:02:41]} Ka7 {[%emt 0:00:04]} 62. Bc4 {[%emt 0:00:06]} Ba3 {[%emt 0:02:54]} 63. Kb5 {[%emt 0:00:11]} Bb4 {[%emt 0:00:36] [#]} 64. d4 $1 {[%emt 0:00:11]} Ba3 {[%emt 0:00:18]} 65. d5 {[%emt 0:00:41]} Bb2 {[%emt 0:00:16]} 66. d6 {[%emt 0:00:16]} Bf6 {[%emt 0:00:10]} 67. Kc6 {[%emt 0:00:14]} Kb8 {[%emt 0:00:27]} 68. Kd7 {[%emt 0:00:17]} Bg7 {[%emt 0:00:56]} 69. Ke8 $18 {[%emt 0:00:17]} (69. Ke6 $142 Bc3 70. d7 Ba5 71. Ke7 Ka7 72. d8=Q Bxd8+ 73. Kxd8 Kb6 74. Kc8) 69... Bf6 {[%emt 0:00:05]} 70. Bd5 {[%emt 0:00:21]} c4 {[%emt 0:00:10]} 71. Bxc4 {[%emt 0:00:07]} Kc8 {[%emt 0:00:03]} 72. Bd5 {[%emt 0:00:33]} Bd8 {[%emt 0:00:06]} 73. a7 {[%emt 0:00:13]} 1-0

[Event "World Chess Trophy 2018"]
[Site "Tenerife"]
[Date "2018.06.21"]
[Round "5"]
[White "De Rosa, Mariagrazia"]
[Black "Kraus, Oliver"]
[Result "0-1"]
[ECO "B33"]
[WhiteElo "2120"]
[BlackElo "2044"]
[Annotator "NA"]
[PlyCount "70"]
[EventDate "2018.06.17"]
[EventType "swiss"]
[EventCountry "ESP"]
[SourceTitle "playchess.com"]
[Source "ChessBase"]
[SourceQuality "1"]
[TimeControl "5400+30"]

1. e4 {[%emt 0:00:00]} c5 {[%emt 0:01:43]} 2. Nf3 {[%emt 0:01:08]} Nc6 {[%emt 0:01:08]} 3. d4 {[%emt 0:01:51]} cxd4 {[%emt 0:00:14]} 4. Nxd4 {[%emt 0:00:06]} Qb6 {[%emt 0:01:21]} 5. Nb3 {[%emt 0:00:29]} Nf6 {[%emt 0:00:19]} 6. Nc3 {[%emt 0:04:00]} e6 {[%emt 0:00:48]} 7. Be3 {[%emt 0:03:08]} Qc7 {[%emt 0:00:18]} 8. a3 {[%emt 0:08:51]} a6 {[%emt 0:02:50]} 9. f4 {[%emt 0:04:54]} d6 {[%emt 0:01:23]} 10. g4 {[%emt 0:16:55] B33: Sicilian: Pelikan and Sveshnikov Variations} Be7 {[%emt 0:08:24]} 11. g5 {[%emt 0:13:54]} Nd7 {[%emt 0:01:45]} 12. Qf3 {[%emt 0:05:35]} b5 {[%emt 0:08:50] LiveBook: 4 Games} 13. h4 {[%emt 0:06:57]} Bb7 {[%emt 0:11:43]} 14. Bh3 $146 {[%emt 0:12:21]} ({Predecessor:} 14. h5 b4 15. axb4 Nxb4 16. O-O-O Rc8 {0-1 (39) Wang,T (2385)-Zhao,J (2616) China 2017}) 14... b4 {[%emt 0:15:49]} 15. axb4 {[%emt 0:00:40]} Nxb4 {[%emt 0:00:11]} 16. Rh2 {[%emt 0:07:01]} d5 {[%emt 0:06:44]} 17. Bd4 {[%emt 0:04:18]} dxe4 {[%emt 0:02:41]} 18. Qe3 {[%emt 0:05:14]} O-O {[%emt 0:05:52]} 19. O-O-O {[%emt 0:01:20]} Nd5 {[%emt 0:03:05]} 20. Nxd5 {[%emt 0:00:23]} Bxd5 {[%emt 0:00:13]} 21. Rf2 {[%emt 0:00:38]} Rab8 {[%emt 0:02:43]} 22. Kb1 {[%emt 0:00:31]} a5 {[%emt 0:03:33]} 23. h5 {[%emt 0:00:41]} a4 {[%emt 0:01:22]} 24. Nd2 {[%emt 0:00:29]} Rfc8 {[%emt 0:04:39]} 25. Nxe4 {[%emt 0:00:13]} Qb7 {[%emt 0:01:33]} 26. Ng3 {[%emt 0:00:38]} Bc5 {[%emt 0:02:06]} 27. c3 $19 {[%emt 0:00:39]} (27. c4 $142 Bxc4 28. g6 hxg6 29. hxg6) 27... Qb3 {[%emt 0:02:07]} 28. Re1 {[%emt 0:00:29]} Qa2+ {[%emt 0:00:51]} 29. Kc1 {[%emt 0:00:11]} Qa1+ {[%emt 0:00:40]} 30. Kd2 {[%emt 0:00:48]} Qxb2+ {[%emt 0:02:45]} 31. Kd3 {[%emt 0:00:11]} Qb5+ {[%emt 0:01:13]} 32. Kd2 {[%emt 0:00:15]} Bc4 {[%emt 0:04:53]} 33. Qe4 {[%emt 0:00:12]} Bxd4 {[%emt 0:00:46]} 34. Qxd4 {[%emt 0:00:21]} Nc5 {[%emt 0:00:53]} 35. Ne4 {[%emt 0:01:36]} Nb3+ {[%emt 0:01:24]} 0-1

[Event "World Chess Trophy 2018"]
[Site "Tenerife"]
[Date "2018.06.21"]
[Round "5"]
[White "Steiner, Juraj"]
[Black "Franco, Victor"]
[Result "0-1"]
[ECO "D36"]
[WhiteElo "2001"]
[BlackElo "2126"]
[Annotator "NA"]
[PlyCount "61"]
[EventDate "2018.06.17"]
[EventType "swiss"]
[EventCountry "ESP"]
[SourceTitle "playchess.com"]
[Source "ChessBase"]
[SourceQuality "1"]
[TimeControl "5400+30"]

1. c4 {[%emt 0:00:00]} Nf6 {[%emt 0:00:39]} 2. Nc3 {[%emt 0:00:08]} e6 {[%emt 0:01:00]} 3. d4 {[%emt 0:00:33]} d5 {[%emt 0:01:22]} 4. cxd5 {[%emt 0:00:37]} exd5 {[%emt 0:00:14]} 5. Bg5 {[%emt 0:00:41]} Be7 {[%emt 0:01:15]} 6. e3 {[%emt 0:01:56]} c6 {[%emt 0:00:53]} 7. Qc2 {[%emt 0:01:03]} Nbd7 {[%emt 0:03:10]} 8. Bd3 {[%emt 0:03:46]} Nb6 {[%emt 0:06:54]} 9. Nge2 {[%emt 0:03:27] LiveBook: 7 Games} Bd7 {[%emt 0:01:10]} 10. O-O {[%emt 0:01:50]} h6 {[%emt 0:00:57]} 11. Bh4 {[%emt 0:00:42]} O-O {[%emt 0:00:33]} 12. Rad1 {[%emt 0:02:35]} Nh5 {[%emt 0:04:29]} 13. Bxe7 {[%emt 0:08:51]} Qxe7 $11 {[%emt 0:00:25]} 14. Kh1 {[%emt 0:13:31]} Rae8 {[%emt 0:09:51]} 15. Rde1 {[%emt 0:05:53]} Nf6 {[%emt 0:08:04]} 16. Ng3 {[%emt 0:00:56]} Ng4 {[%emt 0:14:51]} 17. Nf5 {[%emt 0:17:43]} Bxf5 {[%emt 0:01:20]} 18. Bxf5 {[%emt 0:00:28]} Nf6 {[%emt 0:00:35]} 19. Na4 {[%emt 0:04:32]} Nc4 {[%emt 0:04:24]} 20. Qc1 {[%emt 0:03:22]} Nd6 {[%emt 0:00:48]} 21. Bh3 {[%emt 0:04:19]} Nfe4 {[%emt 0:02:43]} 22. g3 {[%emt 0:01:01]} Qf6 {[%emt 0:01:58]} 23. f3 {[%emt 0:01:48]} Ng5 {[%emt 0:01:22]} 24. Bg2 {[%emt 0:00:15]} Re7 {[%emt 0:01:02]} 25. Nc5 {[%emt 0:02:54]} Rfe8 {[%emt 0:01:12]} 26. h4 {[%emt 0:02:16]} Ne6 {[%emt 0:01:08]} 27. Nd3 {[%emt 0:01:39]} Qg6 {[%emt 0:00:31]} 28. Qd2 {[%emt 0:01:21]} Qxg3 {[%emt 0:00:41]} 29. Qf2 {[%emt 0:00:06]} Qxf2 {[%emt 0:00:19]} 30. Rxf2 {[%emt 0:00:40]} Nxd4 {[%emt 0:31:40]} 31. Bf1 {[%emt 0:16:37]} 0-1

[Event "World Chess Trophy 2018"]
[Site "Tenerife"]
[Date "2018.06.21"]
[Round "5"]
[White "Harstad, Christian"]
[Black "Aledo Yanguas, David"]
[Result "1-0"]
[ECO "E12"]
[WhiteElo "1985"]
[BlackElo "1986"]
[Annotator "NA"]
[PlyCount "65"]
[EventDate "2018.06.17"]
[EventType "swiss"]
[EventCountry "ESP"]
[SourceTitle "playchess.com"]
[Source "ChessBase"]
[SourceQuality "1"]
[TimeControl "5400+30"]

1. d4 {[%emt 0:00:00]} Nf6 {[%emt 0:00:07]} 2. c4 {[%emt 0:00:00]} e6 {[%emt 0:00:05]} 3. Nf3 {[%emt 0:00:22]} b6 {[%emt 0:00:09]} 4. a3 {[%emt 0:00:44]} Bb7 {[%emt 0:00:22]} 5. Nc3 {[%emt 0:00:07] LiveBook: 7223 Games} Ne4 {[%emt 0:03:37]} 6. Qc2 {[%emt 0:00:38]} f5 {[%emt 0:00:08]} 7. g3 {[%emt 0:00:47]} d6 {[%emt 0:00:25]} 8. Bg2 {[%emt 0:00:15]} Nxc3 {[%emt 0:04:04]} 9. Qxc3 {[%emt 0:00:26]} Nd7 {[%emt 0:00:32]} 10. O-O {[%emt 0:01:34]} Nf6 {[%emt 0:01:20]} 11. b4 {[%emt 0:00:59]} h6 {[%emt 0:01:43]} (11... Be7 $14) 12. Bb2 {[%emt 0:06:19]} Be7 {[%emt 0:08:05] [#]} 13. d5 $1 {[%emt 0:07:52]} exd5 {[%emt 0:01:37]} 14. Nh4 $18 {[%emt 0:08:16]} Qd7 {[%emt 0:01:08]} 15. Bh3 {[%emt 0:03:39]} Qc6 {[%emt 0:17:52]} 16. Bxf5 {[%emt 0:13:02]} dxc4 {[%emt 0:01:17]} 17. e4 {[%emt 0:02:50]} Kd8 {[%emt 0:07:12]} 18. f3 {[%emt 0:03:07]} b5 {[%emt 0:05:49]} 19. Rad1 {[%emt 0:04:07]} Nh5 {[%emt 0:07:56]} 20. Ng6 {[%emt 0:03:25]} Re8 {[%emt 0:00:16]} 21. Kg2 {[%emt 0:00:56]} Bc8 {[%emt 0:02:45]} 22. Nxe7 {[%emt 0:02:16]} Rxe7 {[%emt 0:00:19]} 23. Bg6 {[%emt 0:01:05]} Nf6 {[%emt 0:03:10]} 24. e5 {[%emt 0:01:20]} Qb6 {[%emt 0:17:32]} 25. Rfe1 {[%emt 0:04:36]} Ne8 {[%emt 0:03:30]} 26. exd6 {[%emt 0:03:44]} cxd6 {[%emt 0:01:20]} 27. Rxe7 {[%emt 0:04:20]} Kxe7 {[%emt 0:00:11]} 28. Re1+ {[%emt 0:02:08]} Be6 {[%emt 0:00:18]} 29. Bf5 {[%emt 0:00:20]} Nf6 {[%emt 0:01:17]} 30. Rxe6+ {[%emt 0:00:45]} Kd8 {[%emt 0:00:41]} 31. Rxf6 {[%emt 0:02:01]} gxf6 {[%emt 0:00:09]} 32. Qxf6+ {[%emt 0:00:06]} Kc7 {[%emt 0:00:10]} 33. Qe7+ {[%emt 0:00:51]} 1-0

[Event "World Chess Trophy 2018"]
[Site "Tenerife"]
[Date "2018.06.21"]
[Round "5"]
[White "Rutherford, William"]
[Black "Mamani Beltran, Deniman"]
[Result "1/2-1/2"]
[ECO "D02"]
[WhiteElo "1959"]
[BlackElo "1656"]
[Annotator "NA"]
[PlyCount "71"]
[EventDate "2018.06.17"]
[EventType "swiss"]
[EventCountry "ESP"]
[SourceTitle "playchess.com"]
[Source "ChessBase"]
[SourceQuality "1"]
[TimeControl "5400+30"]

1. d4 {[%emt 0:00:00]} d5 {[%emt 0:00:12]} 2. Bf4 {[%emt 0:00:00]} Nf6 {[%emt 0:00:41]} 3. e3 {[%emt 0:00:32]} e6 {[%emt 0:00:16]} 4. Nd2 {[%emt 0:01:40]} Bd6 {[%emt 0:00:15]} 5. Bg3 {[%emt 0:02:11]} O-O {[%emt 0:00:20]} 6. Bd3 {[%emt 0:00:17]} c5 {[%emt 0:00:17]} 7. c3 {[%emt 0:00:12]} Nc6 {[%emt 0:00:03]} 8. Ngf3 {[%emt 0:00:53]} Qe7 {[%emt 0:00:33]} 9. Ne5 {[%emt 0:01:59] LiveBook: 159 Games} Bxe5 {[%emt 0:01:44]} 10. dxe5 {[%emt 0:01:13] D02: Damenbauernspiele} Nd7 {[%emt 0:00:09]} 11. Nf3 {[%emt 0:05:28]} ({Reject} 11. Qh5 g6 $15) (11. f4 f6 12. Bh4 Qf7 13. exf6 Nxf6 14. O-O e5 15. Bxf6 gxf6 16. e4 Kh8 17. exd5 Qxd5 18. Be4 Qd6 19. Nc4 Qe7 20. Qh5 exf4 21. Rxf4 Ne5 22. Nxe5 {1-0 (22) Kramnik,V (2777)-Rasmussen,A (2498) Berlin 2015}) 11... f6 {[%emt 0:01:10]} 12. exf6 {[%emt 0:00:23]} Nxf6 {[%emt 0:00:07]} 13. Ne5 {[%emt 0:04:20]} Nxe5 {[%emt 0:00:49]} 14. Bxe5 {[%emt 0:00:07]} Bd7 {[%emt 0:00:16]} 15. O-O {[%emt 0:03:42]} Bc6 {[%emt 0:00:08]} 16. c4 $146 {[%emt 0:08:04]} ({Vorgänger:} 16. Qe2 Rac8 17. c4 Nd7 {1-0 (45) Hjaltason,G (2148)-Packroff,H (2206) ICCF email 2013}) 16... Rad8 {[%emt 0:04:28]} 17. Qc2 {[%emt 0:04:58]} h6 {[%emt 0:00:22]} 18. Rad1 {[%emt 0:02:28]} Ng4 {[%emt 0:02:01]} 19. Bg3 {[%emt 0:01:31]} Kh8 {[%emt 0:00:26]} 20. h3 {[%emt 0:03:23]} Nf6 {[%emt 0:02:07]} 21. Qe2 {[%emt 0:11:38]} b6 {[%emt 0:02:40]} 22. Be5 {[%emt 0:03:50]} Nd7 {[%emt 0:06:33]} 23. Bc3 {[%emt 0:02:28]} e5 {[%emt 0:01:13]} 24. cxd5 {[%emt 0:02:13]} Bxd5 {[%emt 0:01:39]} 25. Bb1 {[%emt 0:02:53]} Nf6 {[%emt 0:00:49]} 26. e4 {[%emt 0:04:34]} Bb7 $14 {[%emt 0:00:51]} 27. f3 {[%emt 0:00:27]} Nh5 {[%emt 0:00:25]} 28. Rxd8 {[%emt 0:02:12]} Rxd8 {[%emt 0:02:18]} 29. Rd1 {[%emt 0:03:17]} Nf4 {[%emt 0:01:19]} 30. Rxd8+ {[%emt 0:02:03]} Qxd8 {[%emt 0:00:09]} 31. Qd2 {[%emt 0:02:36]} Qxd2 {[%emt 0:00:44]} 32. Bxd2 {[%emt 0:01:03]} g5 {[%emt 0:00:11]} 33. Kf2 {[%emt 0:00:29]} Kg7 {[%emt 0:00:06]} 34. Bc3 {[%emt 0:01:42]} Kf6 {[%emt 0:00:10]} 35. a3 {[%emt 0:00:40]} Bc8 {[%emt 0:00:17]} 36. Bc2 {[%emt 0:22:34]} 1/2-1/2

[Event "World Chess Trophy 2018"]
[Site "Tenerife"]
[Date "2018.06.21"]
[Round "5"]
[White "Pirrello, Christian"]
[Black "Ciampi, Vincenzo"]
[Result "1/2-1/2"]
[ECO "A31"]
[WhiteElo "1935"]
[BlackElo "1959"]
[Annotator "NA"]
[PlyCount "20"]
[EventDate "2018.06.17"]
[EventType "swiss"]
[EventCountry "ESP"]
[SourceTitle "playchess.com"]
[Source "ChessBase"]
[SourceQuality "1"]
[TimeControl "5400+30"]

{[%evp 8,10,17,-20,-6]} 1. Nf3 {[%emt 0:00:00]} Nf6 {[%emt 0:00:48]} 2. c4 {[%emt 0:00:00]} c5 {[%emt 0:02:36]} 3. d4 {[%emt 0:00:00]} cxd4 {[%emt 0:00:08]} 4. Nxd4 {[%emt 0:00:00]} e5 {[%emt 0:00:17] LiveBook: 1021 Games} 5. Nc2 $11 {[%emt 0:00:08]} d5 {[%emt 0:00:05]} 6. cxd5 {[%emt 0:00:05]} Qxd5 {[%emt 0:00:06]} 7. Qxd5 {[%emt 0:00:05]} Nxd5 {[%emt 0:00:05]} 8. e4 {[%emt 0:00:24]} Nb4 {[%emt 0:00:07]} 9. Nxb4 {[%emt 0:00:31]} Bxb4+ {[%emt 0:00:08]} 10. Bd2 {[%emt 0:00:06]} Bxd2+ {[%emt 1:31:10]} 1/2-1/2

[Event "World Chess Trophy 2018"]
[Site "Tenerife"]
[Date "2018.06.21"]
[Round "5"]
[White "Jacobs, Paul"]
[Black "Grigioni, Giulio"]
[Result "0-1"]
[ECO "D94"]
[WhiteElo "1867"]
[BlackElo "1818"]
[Annotator "NA"]
[PlyCount "82"]
[EventDate "2018.06.17"]
[EventType "swiss"]
[EventCountry "ESP"]
[SourceTitle "playchess.com"]
[Source "ChessBase"]
[SourceQuality "1"]
[TimeControl "5400+30"]

1. d4 {[%emt 0:01:46]} Nf6 {[%emt 0:00:11]} 2. Nf3 {[%emt 0:00:09]} d5 {[%emt 0:01:52]} 3. c4 {[%emt 0:00:14]} c6 {[%emt 0:01:32]} 4. cxd5 {[%emt 0:00:14]} cxd5 {[%emt 0:00:17]} 5. Nc3 {[%emt 0:00:14]} Nc6 {[%emt 0:01:36]} 6. e3 {[%emt 0:00:55]} g6 {[%emt 0:06:06]} 7. Be2 {[%emt 0:03:03]} Bg7 {[%emt 0:00:30]} 8. O-O {[%emt 0:00:26]} O-O {[%emt 0:00:40] LiveBook: 11 Games} 9. a3 {[%emt 0:01:21]} a6 {[%emt 0:05:00]} 10. b4 {[%emt 0:04:30]} b5 {[%emt 0:03:47]} 11. Bb2 {[%emt 0:00:21]} Bg4 {[%emt 0:04:29]} 12. Rc1 {[%emt 0:02:51]} Qd6 {[%emt 0:03:50]} 13. Nd2 {[%emt 1:20:26]} Bxe2 {[%emt 1:07:10]} 14. Nxe2 $15 {[%emt 0:00:00]} e5 {[%emt 0:00:00]} 15. dxe5 {[%emt 0:00:00]} Nxe5 {[%emt 0:00:00]} 16. Nd4 {[%emt 0:00:00]} Nc4 {[%emt 0:00:00]} 17. Nxc4 {[%emt 0:00:00]} dxc4 {[%emt 0:00:00]} 18. Qf3 {[%emt 0:00:00]} Qd5 {[%emt 0:00:00]} 19. Rfd1 {[%emt 0:00:00]} Qxf3 {[%emt 0:00:00]} 20. Nxf3 {[%emt 0:00:00]} Rfd8 {[%emt 0:00:00]} 21. Bd4 {[%emt 0:00:00]} Ne4 {[%emt 0:00:00]} 22. Bxg7 {[%emt 0:00:00]} Kxg7 {[%emt 0:00:00]} 23. Nd4 {[%emt 0:00:00]} Kf6 {[%emt 0:00:00]} 24. f3 {[%emt 0:00:00]} Ng5 {[%emt 0:00:00]} 25. Kf2 {[%emt 0:00:00]} Rd6 {[%emt 0:00:00]} 26. a4 {[%emt 0:00:00]} Ne6 {[%emt 0:00:00]} 27. axb5 {[%emt 0:00:00]} Nxd4 {[%emt 0:00:00]} 28. exd4 {[%emt 0:00:00]} axb5 {[%emt 0:00:00]} 29. Rb1 {[%emt 0:00:00]} Ra2+ {[%emt 0:00:00]} 30. Kg3 {[%emt 0:00:00]} h5 {[%emt 0:00:00]} 31. h4 {[%emt 0:00:00]} g5 {[%emt 0:00:00]} 32. hxg5+ {[%emt 0:00:00]} Kxg5 {[%emt 0:00:00]} 33. Re1 {[%emt 0:00:00]} Rd5 {[%emt 0:00:00]} 34. Re4 {[%emt 0:00:00]} f5 {[%emt 0:00:00]} 35. Rh4 {[%emt 0:00:00]} Rxg2+ {[%emt 0:00:00]} 36. Kxg2 {[%emt 0:00:00]} Kxh4 {[%emt 0:00:00]} 37. Rh1+ {[%emt 0:00:00]} Kg5 {[%emt 0:00:00]} 38. f4+ {[%emt 0:00:00]} Kxf4 {[%emt 0:00:00]} 39. Rxh5 {[%emt 0:00:00]} Rxd4 {[%emt 0:00:00]} 40. Kf2 {[%emt 0:00:00]} Rd2+ {[%emt 0:00:00]} 41. Ke1 {[%emt 0:00:00]} Rb2 {[%emt 0:00:00]} 0-1